bitfinex-derivatives/quotes_BNBF0:USTF0_20250211
["timestamp","ask_amount","ask_price","bid_price","bid_amount"]
[1739295335017,0.31680658,631.3,629.64,0.31764182]
[1739295335218,0.31680658,631.3,629.65,0.29133399]
[1739295335414,0.31680658,631.3,629.66,0.29133399]
[1739295335613,0.31680658,631.3,629.67,0.29133399]
[1739295335817,0.31680658,631.3,629.68,0.29133399]
[1739295336016,0.31680658,631.3,629.69,0.29133399]
[1739295336217,0.31680658,631.3,629.64,0.31764182]
[1739295336414,0.31680658,631.3,629.65,0.29132863]
[1739295336613,0.31680658,631.3,629.66,0.29132863]
[1739295336815,0.31680658,631.3,629.67,0.60895532]
[1739295337013,0.31680658,631.3,629.69,0.3176166]
[1739295337217,0.31680658,631.3,629.7,0.29132863]
[1739295337520,0.31680658,631.3,629.71,0.60893514]
[1739295337715,0.31680658,631.3,629.72,0.6089301]
[1739295337920,0.31680658,631.3,629.73,0.9066484]
[1739295338120,0.31680658,631.3,629.74,0.29132863]
[1739295338318,0.31680658,631.3,629.74,0.61531977]
[1739295338515,0.31680658,631.3,629.76,0.3175813]
[1739295338719,0.31680658,631.3,629.77,0.29132863]
[1739295338915,0.31680658,631.3,629.79,0.31756617]
[1739295339120,0.31680658,631.3,629.8,0.29132863]
[1739295339316,0.31680658,631.3,629.82,0.31755104]
[1739295339518,0.31680658,631.3,629.83,0.29132863]
[1739295339717,0.31680658,631.3,629.85,0.31753592]
[1739295339920,0.31680658,631.3,629.86,0.29132863]
[1739295340123,0.31680658,631.3,629.87,0.29132863]
[1739295340321,0.31680658,631.3,629.88,0.29132863]
[1739295340516,0.31680658,631.3,629.89,0.29132863]
[1739295340719,0.31680658,631.3,629.9,0.29132863]
[1739295341119,0.31680658,631.3,629.91,0.6088343]
[1739295341321,0.31680658,631.3,629.92,0.60882926]
[1739295341522,0.31680658,631.3,629.92,1.22414903]
[1739295341716,0.31680658,631.3,629.94,0.31749055]
[1739295341920,0.31680658,631.3,629.95,0.29132863]
[1739295342116,0.31680658,631.3,629.96,0.31748047]
[1739295342323,0.31680658,631.3,629.97,0.29132863]
[1739295342624,0.31680658,631.3,629.98,0.31747039]
[1739295342823,0.31680658,631.3,629.99,0.29132863]
[1739295343023,0.31680658,631.3,630.0,0.31746031]
[1739295343224,0.31680658,631.3,630.01,0.29132863]
[1739295343423,0.31680658,631.3,630.02,0.31745023]
[1739295343622,0.31680658,631.3,630.03,0.29132863]
[1739295343825,0.31680658,631.3,630.04,0.31744016]
[1739295344219,0.31680658,631.3,630.05,0.29132863]
[1739295345324,0.31680658,631.3,630.04,0.31744016]
[1739295345526,0.31680658,631.3,630.05,0.29123002]
[1739295347127,0.31680658,631.3,630.04,0.31744016]
[1739295347321,0.31680658,631.3,630.05,0.29123399]
[1739295348938,0.31680658,631.3,630.04,0.31744016]
[1739295349130,0.31680658,631.3,630.05,0.29122853]
[1739295349429,0.31680658,631.3,630.06,0.31743008]
[1739295349624,0.31680658,631.3,630.07,0.29122853]
[1739295349827,0.31680658,631.3,630.08,0.31742001]
[1739295350025,0.31680658,631.3,630.09,0.29122853]
[1739295350727,0.31680658,631.3,630.1,0.29125822]
[1739295350925,0.31680658,631.3,630.11,0.29125822]
[1739295351229,0.31680658,631.3,630.12,0.29125822]
[1739295351425,0.31680658,631.3,630.09,0.29125822]
[1739295354429,0.31680658,631.3,630.1,0.29122582]
[1739295354629,0.31680658,631.3,630.11,0.60863071]
[1739295354933,0.31680658,631.3,629.61,1.65454942]
[1739295354934,0.31680658,631.3,630.12,1.22373813]
[1739295355128,0.31680658,631.3,630.13,0.29122582]
[1739295357931,0.31680658,631.3,630.12,0.31739986]
[1739295358131,0.31680658,631.3,630.13,0.29122663]
[1739295359533,0.31680658,631.3,630.12,0.31739986]
[1739295359732,0.31680658,631.3,630.13,0.2912235]
[1739295361134,0.31680658,631.3,630.14,0.29125243]
[1739295361634,0.31680658,631.3,630.13,0.29125243]
[1739295361844,0.31680658,631.3,630.14,0.29125243]
[1739295362035,0.31680658,631.3,630.13,0.29125243]
[1739295362738,0.31680658,631.3,630.14,0.2913163]
[1739295363034,0.31680658,631.3,630.12,0.31739986]
[1739295363035,0.31680658,631.3,630.15,0.2913163]
[1739295363235,0.31680658,631.3,630.13,0.2913163]
[1739295363434,0.31680658,631.3,630.14,0.2913163]
[1739295363629,0.31680658,631.3,630.15,0.2913163]
[1739295363830,0.31680658,631.3,630.13,0.2913163]
[1739295364035,0.31680658,631.3,630.14,0.2913163]
[1739295364236,0.31680658,631.3,630.12,0.31739986]
[1739295364430,0.31680658,631.3,630.13,0.29133082]
[1739295364630,0.31680658,631.3,630.12,0.31739986]
[1739295365033,0.31680658,631.3,630.13,0.29130587]
[1739295366235,0.31680658,631.3,630.12,0.31739986]
[1739295366428,0.31680658,631.3,630.13,0.29126631]
[1739295369935,0.31680658,631.3,630.14,0.29130018]
[1739295370236,0.31680658,631.3,630.15,0.29130018]
[1739295370537,0.31680658,631.3,630.16,0.29130018]
[1739295370737,0.31680658,631.3,630.17,0.29130018]
[1739295370932,0.31680658,631.3,630.13,0.29130018]
[1739295371136,0.31680658,631.3,630.14,0.29130018]
[1739295371337,0.31680658,631.3,630.13,0.29130018]
[1739295371537,0.31680658,631.3,630.15,0.29130018]
[1739295371734,0.31680658,631.3,630.12,0.31739986]
[1739295371735,0.31680658,631.3,630.16,0.29130018]
[1739295371933,0.31680658,631.3,630.13,0.29130018]
[1739295372134,0.31680658,631.3,630.14,0.29130018]
[1739295372337,0.31680658,631.3,630.13,0.29130018]
[1739295372539,0.31680658,631.3,630.14,0.29130018]
[1739295372734,0.31680658,631.3,630.13,0.29130018]
[1739295372938,0.31680658,631.3,630.14,0.29130018]
[1739295373132,0.31680658,631.3,630.15,0.29130018]
[1739295373338,0.31680658,631.3,630.13,0.29130018]
[1739295373639,0.31680658,631.3,630.14,0.29130018]
[1739295373841,0.31680658,631.3,630.13,0.29130018]
[1739295374037,0.31680658,631.3,630.14,0.29130018]
[1739295374237,0.31680658,631.3,630.13,0.29130018]
[1739295374433,0.31680658,631.3,630.14,0.29130018]
[1739295374634,0.31680658,631.3,630.13,0.29130018]
[1739295374835,0.31680658,631.3,630.14,0.29130018]
[1739295375036,0.31680658,631.3,630.15,0.29130018]
[1739295375239,0.31680658,631.3,630.13,0.29130018]
[1739295375433,0.31680658,631.3,630.16,0.29130018]
[1739295375636,0.31680658,631.3,630.17,0.29130018]
[1739295375837,0.31680658,631.3,630.13,0.29130018]
[1739295377039,0.31680658,631.3,630.12,0.31739986]
[1739295377240,0.31680658,631.3,630.13,0.29125514]
[1739295378638,0.31680658,631.3,630.14,0.29125514]
[1739295378834,0.31680658,631.3,630.15,0.29125514]
[1739295379038,0.31680658,631.3,630.16,0.31737971]
[1739295379239,0.31680658,631.3,630.16,0.60863485]
[1739295379434,0.31680658,631.3,630.17,0.29125514]
[1739295379640,0.31680658,631.3,630.18,0.29118168]
[1739295379939,0.31680658,631.3,630.19,0.29118168]
[1739295380140,0.31680658,631.3,630.2,0.31735956]
[1739295380340,0.31680658,631.3,630.21,0.29118168]
[1739295380539,0.31680658,631.3,630.22,0.31734949]
[1739295380733,0.31680658,631.3,630.23,0.29118168]
[1739295380940,0.31680658,631.3,630.24,0.31733942]
[1739295381334,0.31680658,631.3,630.25,0.29118168]
[1739295381533,0.31680658,631.3,630.25,0.90614608]
[1739295381735,0.31680658,631.3,630.25,0.29118168]
[1739295381934,0.31680658,631.3,630.26,0.29118168]
[1739295382142,0.31680658,631.3,630.25,0.29118168]
[1739295382343,0.31680658,631.3,630.26,0.29118168]
[1739295382544,0.31680658,631.3,630.25,0.29118168]
[1739295382745,0.31680658,631.3,630.26,0.29114886]
[1739295383038,0.31680658,631.3,630.27,0.29114886]
[1739295383243,0.31680658,631.3,630.28,0.29114886]
[1739295383539,0.31680658,631.3,630.29,0.29114886]
[1739295383744,0.31680658,631.3,630.3,0.29114886]
[1739295383951,0.31680658,631.3,630.24,0.31733942]
[1739295383952,0.31680658,631.3,630.25,0.29114886]
[1739295384145,0.31680658,631.3,630.26,0.29114886]
[1739295384341,0.31680658,631.3,630.27,0.29114886]
[1739295384546,0.31680658,631.3,630.25,0.29114886]
[1739295384746,0.31680658,631.3,630.26,0.29114886]
[1739295385046,0.31680658,631.3,630.27,0.29114886]
[1739295385248,0.31680658,631.3,630.25,0.29114886]
[1739295386348,0.31680658,631.3,630.24,0.31733942]
[1739295387048,0.31680658,631.3,630.25,0.29124594]
[1739295388854,0.31680658,631.3,630.24,0.31733942]
[1739295389056,0.31680658,631.3,630.25,0.29120163]
[1739295390753,0.31680658,631.3,630.25,0.60853602]
[1739295390950,2.08607927,632.17,630.26,0.60853098]
[1739295391152,0.3163806,632.15,630.27,0.60852595]
[1739295391355,0.27249388,632.14,630.28,0.60852091]
[1739295391660,0.31639562,632.12,630.29,0.29120163]
[1739295391855,0.27249388,632.11,630.29,0.29120163]
[1739295392156,0.31641063,632.09,630.29,0.29120163]
[1739295392358,0.27249388,632.08,630.29,0.29120163]
[1739295392557,0.31642565,632.06,630.29,0.29120163]
[1739295392758,0.27249388,632.05,630.29,0.29120163]
[1739295392955,0.31644067,632.03,630.29,0.29120163]
[1739295393157,0.27249388,632.02,630.29,0.29120163]
[1739295393361,0.31644067,632.03,630.28,0.31731928]
[1739295393558,0.31645569,632.0,630.29,0.2911588]
[1739295393754,0.2726987,631.99,630.29,0.2911588]
[1739295393959,0.31647071,631.97,630.29,0.2911588]
[1739295394160,0.2726987,631.96,630.29,0.2911588]
[1739295394460,0.31648574,631.94,630.29,0.2911588]
[1739295394661,0.2726987,631.93,630.29,0.2911588]
[1739295394860,0.31650076,631.91,630.29,0.2911588]
[1739295395060,0.2726987,631.9,630.29,0.2911588]
[1739295395261,0.31650076,631.91,630.3,0.31730921]
[1739295395457,0.31650076,631.91,630.31,0.2911588]
[1739295395663,0.31650076,631.91,630.32,0.31729914]
[1739295395962,0.31650076,631.91,630.33,0.2911588]
[1739295396363,0.31650076,631.91,630.34,0.31728908]
[1739295396563,0.27251758,631.9,630.35,0.2911588]
[1739295396863,0.31651579,631.88,630.35,0.2911588]
[1739295397064,0.27251758,631.87,630.35,0.2911588]
[1739295397263,0.31653082,631.85,630.35,0.2911588]
[1739295398060,0.27241559,631.84,630.35,0.2911588]
[1739295398258,0.31654585,631.82,630.35,0.2911588]
[1739295398964,0.31654585,631.82,630.36,0.29114854]
[1739295399160,0.31654585,631.82,630.35,0.29114854]
[1739295399358,0.31654585,631.82,630.36,0.29114854]
[1739295399558,0.31654585,631.82,630.34,0.31728908]
[1739295399559,0.31654585,631.82,630.37,0.29114854]
[1739295399761,0.31654585,631.82,630.34,0.31728908]
[1739295399762,0.27243744,631.81,630.35,0.29114854]
[1739295399962,0.27243744,631.81,630.36,0.29114854]
[1739295400159,0.31656088,631.79,630.35,0.29114854]
[1739295400361,0.31656088,631.79,630.36,0.29114854]
[1739295400559,0.31656088,631.79,630.35,0.29114854]
[1739295400766,0.27242696,631.78,630.36,0.29114854]
[1739295400966,0.31657591,631.76,630.35,0.29114854]
[1739295401265,0.31657591,631.76,630.34,0.31728908]
[1739295401266,0.27242696,631.75,630.36,0.29114854]
[1739295401460,0.31658593,631.74,630.35,0.29114854]
[1739295401666,0.27242696,631.73,630.36,0.29114854]
[1739295401868,0.31659596,631.72,630.35,0.29114854]
[1739295402167,0.27235786,631.71,630.35,0.29114854]
[1739295402562,0.31660598,631.7,630.36,0.29115909]
[1739295402765,0.31660598,631.7,630.35,0.29115909]
[1739295404265,0.2725182,631.69,630.35,0.29115909]
[1739295404464,0.316616,631.68,630.35,0.29115909]
[1739295407068,0.27252932,631.67,630.35,0.29115909]
[1739295407770,0.31662603,631.66,630.35,0.29115909]
[1739295407969,0.27252932,631.65,630.35,0.29115909]
[1739295408168,0.31663605,631.64,630.35,0.29115909]
[1739295409571,0.27251369,631.63,630.35,0.29115909]
[1739295409772,0.31664608,631.62,630.35,0.29115909]
[1739295409971,0.31664608,631.62,630.36,0.29115728]
[1739295410172,0.31664608,631.62,630.37,0.29115728]
[1739295410369,0.31664608,631.62,630.35,0.29115728]
[1739295410568,0.31664608,631.62,630.36,0.29115728]
[1739295410768,0.31664608,631.62,630.35,0.29115728]
[1739295410973,0.31664608,631.62,630.36,0.29115728]
[1739295411174,0.31664608,631.62,630.37,0.29115728]
[1739295411474,0.31664608,631.62,630.38,0.60842622]
[1739295411770,0.31664608,631.62,630.39,0.29115728]
[1739295412570,1.40611079,631.92,630.39,0.29115728]
[1739295412771,1.40611079,631.92,630.41,0.31725385]
[1739295412972,1.40611079,631.92,630.42,0.29115728]
[1739295413173,1.40611079,631.92,630.44,0.31723875]
[1739295413667,1.40611079,631.92,630.45,0.29094876]
[1739295413873,1.40611079,631.92,630.47,0.31722365]
[1739295414073,2.08782061,632.14,630.48,0.29094876]
[1739295414274,0.31639061,632.13,630.5,0.31720856]
[1739295414476,0.31639061,632.13,630.51,0.29094876]
[1739295414676,0.31639061,632.13,630.53,0.31719347]
[1739295414876,0.31639061,632.13,630.54,0.29094876]
[1739295415171,0.31639061,632.13,630.56,0.31717838]
[1739295415371,0.31639061,632.13,630.57,0.29092083]
[1739295415572,0.31639061,632.13,630.59,0.31716329]
[1739295415777,0.31639061,632.13,630.6,0.29092083]
[1739295415976,0.31639061,632.13,630.61,0.31715323]
[1739295416371,0.31639061,632.13,630.62,0.29092083]
[1739295416573,0.31639061,632.13,630.64,0.31713814]
[1739295416774,0.31639061,632.13,630.65,0.29092083]
[1739295416977,0.31639061,632.13,630.67,0.31712305]
[1739295417173,0.31639061,632.13,630.68,0.29092083]
[1739295417376,0.31639061,632.13,630.69,0.317113]
[1739295417569,0.31639061,632.13,630.7,0.29092083]
[1739295417772,0.31639061,632.13,630.71,0.31710294]
[1739295417975,0.31639061,632.13,630.72,0.29092083]
[1739295418172,0.31639061,632.13,630.73,0.31709289]
[1739295418373,0.31639061,632.13,630.74,0.29092083]
[1739295418978,0.31639061,632.13,630.75,0.31708283]
[1739295419177,0.31639061,632.13,630.76,0.29092083]
[1739295419682,0.31639061,632.13,630.77,0.31707278]
[1739295419878,0.31639061,632.13,630.78,0.29092083]
[1739295420078,0.31639061,632.13,630.79,0.31706273]
[1739295420274,0.31639061,632.13,630.8,0.29092083]
[1739295420479,0.31639061,632.13,630.81,0.31705267]
[1739295420876,0.31639061,632.13,630.82,0.29084401]
[1739295421377,0.31639061,632.13,630.83,0.31704262]
[1739295421679,0.31639061,632.13,630.84,0.29084401]
[1739295421880,0.31639061,632.13,630.85,0.31703257]
[1739295422074,0.31639061,632.13,630.86,0.29084401]
[1739295422277,0.31639061,632.13,630.87,0.31702252]
[1739295422477,0.31639061,632.13,630.88,0.29084401]
[1739295423482,0.27262722,632.12,630.88,0.29084401]
[1739295423683,0.31639061,632.13,630.88,0.29084401]
[1739295424081,0.31639061,632.13,630.87,0.31702252]
[1739295424082,0.2726495,632.12,630.89,0.29094419]
[1739295424282,0.2726495,632.12,630.88,0.29094419]
[1739295424782,0.31640062,632.11,630.88,0.29094419]
[1739295424983,0.27261493,632.1,630.88,0.29094419]
[1739295425183,0.31640062,632.11,630.88,0.29094419]
[1739295425883,0.31640062,632.11,630.89,0.29100659]
[1739295426078,0.31640062,632.11,630.9,0.29100659]
[1739295426278,0.31640062,632.11,630.87,0.31702252]
[1739295426279,0.31640062,632.11,630.88,0.29100659]
[1739295426482,0.31640062,632.11,630.89,0.29100659]
[1739295426784,0.27245801,632.1,630.4,1.18253121]
[1739295426985,0.27245801,632.1,630.41,0.60830095]
[1739295427178,0.27245801,632.1,630.42,0.2910471]
[1739295427379,0.31641564,632.08,630.43,0.31724378]
[1739295427582,0.27245801,632.07,630.44,0.2910471]
[1739295427781,0.31643066,632.05,630.44,0.2910471]
[1739295427984,0.27245801,632.04,630.44,0.2910471]
[1739295428777,0.31644568,632.02,630.44,0.2910471]
[1739295428979,0.27245801,632.01,630.44,0.2910471]
[1739295429178,0.3164607,631.99,630.44,0.2910471]
[1739295429379,0.3164607,631.99,630.45,0.29108948]
[1739295429380,0.27235969,631.98,630.45,0.29108948]
[1739295429579,0.31647572,631.96,630.45,0.29108948]
[1739295429884,0.27235969,631.95,630.46,0.29108948]
[1739295430185,0.31649075,631.93,630.47,0.29108948]
[1739295430378,0.27235969,631.92,630.44,0.29108948]
[1739295430582,0.31650076,631.91,630.45,0.29108948]
[1739295430785,0.31650076,631.91,630.44,0.29108948]
[1739295430985,0.31650076,631.91,630.45,0.29108948]
[1739295432286,0.27234063,631.9,630.45,0.29108948]
[1739295432688,0.31651078,631.89,630.45,0.29108948]
[1739295433187,0.31651078,631.89,630.46,0.29108602]
[1739295433387,0.31651078,631.89,630.47,0.29108602]
[1739295433588,0.31651078,631.89,630.45,0.29108602]
[1739295433789,0.27237362,631.88,630.46,0.29108602]
[1739295433984,0.3165208,631.87,630.45,0.29108602]
[1739295434183,0.3165208,631.87,630.46,0.29108602]
[1739295434386,0.3165208,631.87,630.47,0.29108602]
[1739295434582,0.3165208,631.87,630.45,0.29108602]
[1739295434782,0.3165208,631.87,630.48,0.29108602]
[1739295434986,0.3165208,631.87,630.49,0.29108602]
[1739295435184,0.3165208,631.87,630.45,0.29108602]
[1739295435489,0.3165208,631.87,630.46,0.29108602]
[1739295435792,0.3165208,631.87,630.47,0.29108602]
[1739295435990,0.27231229,631.86,630.45,0.29108602]
[1739295436187,0.31653082,631.85,630.45,0.29108602]
[1739295436383,0.27231229,631.84,630.45,0.29108602]
[1739295436588,0.31654084,631.83,630.45,0.29108602]
[1739295437382,0.27218299,631.82,630.45,0.29108602]
[1739295437589,0.31655086,631.81,630.45,0.29108602]
[1739295437789,0.27218299,631.8,630.45,0.29108602]
[1739295437990,0.31656088,631.79,630.45,0.29108602]
[1739295438187,0.27218299,631.78,630.46,0.29108602]
[1739295438385,0.27218299,631.78,630.47,0.29108602]
[1739295438582,0.3165709,631.77,630.44,0.31723875]
[1739295438788,0.27216172,631.76,630.45,0.29109981]
[1739295438988,0.31658092,631.75,630.46,0.29109981]
[1739295439188,0.31658092,631.75,630.47,0.29109981]
[1739295439390,0.27216563,631.74,630.45,0.29109981]
[1739295439691,0.31659094,631.73,630.45,0.29109981]
[1739295442493,0.27210456,631.72,630.45,0.29109981]
[1739295442890,0.31660097,631.71,630.45,0.29109981]
[1739295443789,0.27210464,631.7,630.45,0.29109981]
[1739295443993,0.31661099,631.69,630.44,0.31723875]
[1739295444292,0.27210818,631.68,630.45,0.29114523]
[1739295444492,0.31662102,631.67,630.45,0.29114523]
[1739295444693,0.27210818,631.66,630.45,0.29114523]
[1739295444886,0.31663104,631.65,630.45,0.29114523]
[1739295445286,0.27224783,631.64,630.45,0.29114523]
[1739295445988,0.31664107,631.63,630.44,0.31723875]
[1739295446293,0.27219346,631.62,630.45,0.29117568]
[1739295446591,0.31665109,631.61,630.45,0.29117568]
[1739295446994,0.27225137,631.6,630.45,0.29117568]
[1739295447293,0.31666112,631.59,630.45,0.29117568]
[1739295449594,0.31666112,631.59,630.46,0.29117508]
[1739295449794,0.31666112,631.59,630.45,0.29117508]
[1739295451293,0.31666112,631.59,630.44,0.31723875]
[1739295451491,0.31666112,631.59,630.45,0.29116663]
[1739295458906,0.31666112,631.59,630.46,0.60839532]
[1739295459104,0.31666112,631.59,630.47,0.31722365]
[1739295459403,0.31666112,631.59,630.48,0.29116663]
[1739295459604,0.31666112,631.59,630.49,0.60838022]
[1739295459804,0.31666112,631.59,630.5,0.60837519]
[1739295460002,0.31666112,631.59,630.51,0.60837016]
[1739295460300,0.31666112,631.59,630.52,1.22338037]
[1739295460505,0.31666112,631.59,630.53,0.29116663]
[1739295460708,0.31666112,631.59,630.12,0.61501524]
[1739295460709,0.31666112,631.59,630.54,0.31718844]
[1739295460907,0.31666112,631.59,630.55,0.29116663]
[1739295461501,0.31666112,631.59,630.56,0.31717838]
[1739295461702,0.31666112,631.59,630.57,0.29116663]
[1739295461903,0.31666112,631.59,630.58,0.31716832]
[1739295462202,0.31666112,631.59,630.59,0.29116663]
[1739295462413,1.40611079,632.19,630.6,0.31715826]
[1739295462608,0.31637059,632.17,630.61,0.29116663]
[1739295462813,0.27286458,632.16,630.62,0.3171482]
[1739295463008,0.31638561,632.14,630.62,0.3171482]
[1739295463214,0.27289719,632.13,630.63,0.29100154]
[1739295463414,0.31640062,632.11,630.63,0.29100154]
[1739295463606,0.27289719,632.1,630.63,0.60814471]
[1739295463810,0.31641063,632.09,630.64,0.29100154]
[1739295464008,0.27289719,632.08,630.64,0.29100154]
[1739295464209,0.589352,632.07,630.65,0.29101365]
[1739295464510,0.58935701,632.06,630.66,0.29101365]
[1739295464810,0.58936202,632.05,630.67,0.29101365]
[1739295465114,0.58936702,632.04,630.68,0.29101365]
[1739295465314,0.58937203,632.03,630.64,0.29101365]
[1739295465512,0.58937704,632.02,630.65,0.29101365]
[1739295465709,0.31645068,632.01,630.66,0.29101365]
[1739295465908,0.31645068,632.01,630.63,0.31714317]
[1739295465909,0.31645068,632.01,630.64,0.29101365]
[1739295466108,0.27321304,632.0,630.65,0.29101365]
[1739295466314,0.3164607,631.99,630.64,0.29101365]
[1739295466510,0.27321304,631.98,630.65,0.29101365]
[1739295466713,0.27321304,631.98,630.64,0.29101365]
[1739295466914,0.31647071,631.97,630.63,0.31714317]
[1739295467116,0.27321304,631.96,630.64,0.29101365]
[1739295467413,0.31648073,631.95,630.64,0.29101365]
[1739295467616,0.27321304,631.94,630.64,0.29101365]
[1739295467916,0.31649075,631.93,630.64,0.29101365]
[1739295468110,0.27321304,631.92,630.64,0.29101365]
[1739295469610,0.31650076,631.91,630.64,0.29101365]
[1739295469813,0.27321304,631.9,630.64,0.29101365]
[1739295470011,0.31651078,631.89,630.64,0.29101365]
[1739295470212,0.27321304,631.88,630.64,0.29101365]
[1739295470514,0.3165208,631.87,630.64,0.29101365]
[1739295470809,0.27321304,631.86,630.64,0.29101365]
[1739295471015,0.31653082,631.85,630.64,0.29101365]
[1739295471209,0.31653082,631.85,630.63,0.31714317]
[1739295471414,0.31653082,631.85,630.64,0.29107216]
[1739295471810,0.27311667,631.84,630.64,0.29107216]
[1739295472013,0.31654084,631.83,630.64,0.29107216]
[1739295472210,0.27311667,631.82,630.64,0.29107216]
[1739295472513,0.31655086,631.81,630.64,0.29107216]
[1739295472714,0.27311667,631.8,630.64,0.29107216]
[1739295473110,0.31656088,631.79,630.64,0.29107216]
[1739295476717,0.31656088,631.79,630.63,0.31714317]
[1739295476917,0.31656088,631.79,630.64,0.29108609]
[1739295479122,0.31656088,631.79,630.63,0.31714317]
[1739295479322,0.2728817,631.78,630.64,0.29109141]
[1739295479516,0.3165709,631.77,630.64,0.29109141]
[1739295479717,0.2728817,631.76,630.64,0.29109141]
[1739295479916,0.31658092,631.75,630.64,0.29109141]
[1739295480825,0.27276213,631.74,630.64,0.29109141]
[1739295481026,0.31659094,631.73,630.64,0.29109141]
[1739295485227,0.31659094,631.73,630.63,0.31714317]
[1739295485430,0.31659094,631.73,630.64,0.29099958]
[1739295487031,0.31659094,631.73,630.65,0.29103886]
[1739295487230,0.31659094,631.73,630.66,0.29103886]
[1739295487431,0.31659094,631.73,630.64,0.29103886]
[1739295487632,0.31659094,631.73,630.65,0.29103886]
[1739295487836,5.94731063,631.72,630.66,0.29103886]
[1739295488027,5.94731063,631.71,630.64,0.29103886]
[1739295488230,5.94731063,631.7,630.65,0.29103886]
[1739295488429,0.31659094,631.73,630.64,0.29103886]
[1739295490129,0.31659094,631.73,630.46,1.18253121]
[1739295490335,0.31659094,631.73,630.47,0.29114761]
[1739295490531,0.27256106,631.72,630.47,0.29114761]
[1739295490730,2.36631034,631.72,630.47,0.29114761]
[1739295490931,0.27256106,631.71,630.47,0.29114761]
[1739295491133,0.27256106,631.7,630.47,0.29114761]
[1739295491435,0.27256106,631.69,630.47,0.29114761]
[1739295491630,0.27256106,631.71,630.47,0.29114761]
[1739295491836,0.27256106,631.71,630.27,1.18253121]
[1739295491837,0.27256106,631.7,630.28,0.90609165]
[1739295492035,0.27256106,631.72,630.29,0.29114761]
[1739295492235,0.27256106,631.69,630.29,0.29114761]
[1739295492437,0.27256106,631.68,630.3,0.29114761]
[1739295492630,0.27256106,631.67,630.31,0.29114761]
[1739295492830,0.27256106,631.71,630.32,0.29114761]
[1739295493033,0.58916704,631.7,630.28,0.90609165]
[1739295493230,0.58917205,631.69,630.29,0.60846186]
[1739295493534,5.96311082,631.91,630.29,0.60846186]
[1739295493535,0.58917706,631.68,630.3,0.90609165]
[1739295493835,0.58917706,631.68,630.29,0.31731425]
[1739295493836,0.31662102,631.67,630.31,0.29114761]
[1739295494134,0.31662102,631.67,630.29,0.31731425]
[1739295494334,0.31662102,631.67,630.3,0.29113881]
[1739295498540,0.31662102,631.67,630.31,0.31730418]
[1739295498842,0.31662102,631.67,630.32,0.29113881]
[1739295499038,0.31662102,631.67,630.33,0.31729411]
[1739295499240,0.31662102,631.67,630.34,0.29113881]
[1739295499441,0.31662102,631.67,630.35,0.31728404]
[1739295499635,0.31662102,631.67,630.36,0.29113881]
[1739295499836,0.31662102,631.67,630.37,0.31727398]
[1739295500033,0.31662102,631.67,630.38,0.29113881]
[1739295500232,0.31662102,631.67,630.39,0.31726391]
[1739295500435,0.31662102,631.67,630.4,0.29113881]
[1739295500635,0.31662102,631.67,630.41,0.31725385]
[1739295500840,0.31662102,631.67,630.42,0.29113881]
[1739295501434,0.31662102,631.67,630.43,0.29111046]
[1739295501741,0.31662102,631.67,630.44,0.29111046]
[1739295501936,0.31662102,631.67,630.41,0.31725385]
[1739295501937,0.31662102,631.67,630.45,0.29111046]
[1739295502139,0.31662102,631.67,630.46,0.29111046]
[1739295502335,0.31662102,631.67,630.47,0.29111046]
[1739295502537,0.31662102,631.67,630.42,0.29111046]
[1739295502837,0.31662102,631.67,630.43,0.29111046]
[1739295503035,0.31662102,631.67,630.41,0.31725385]
[1739295503239,0.31662102,631.67,630.42,0.29112163]
[1739295508137,5.96311082,631.66,630.42,0.29112163]
[1739295508443,6.27974186,631.65,630.42,0.29112163]
[1739295508638,5.96311082,631.64,630.42,0.29112163]
[1739295508837,5.96311082,631.63,630.43,0.29112163]
[1739295509040,5.96311082,631.62,630.44,0.29112163]
[1739295509241,5.96311082,631.61,630.45,0.29112163]
[1739295509444,5.96311082,631.6,630.46,0.29112163]
[1739295509745,5.96311082,631.59,630.47,0.29112163]
[1739295509942,5.96311082,631.58,630.42,0.29112163]
[1739295510138,5.96311082,631.57,630.43,0.29112163]
[1739295510342,5.96311082,631.57,630.41,0.31725385]
[1739295510343,5.96311082,631.56,630.44,0.29112163]
[1739295510542,5.96311082,631.55,630.42,0.29112163]
[1739295510744,5.96311082,631.54,630.43,0.29112163]
[1739295511043,5.96311082,631.53,630.44,0.29112797]
[1739295511238,2.09374928,631.52,630.45,0.29112797]
[1739295511538,0.31663104,631.65,630.46,0.29112797]
[1739295511742,0.27234369,631.64,630.42,0.29112797]
[1739295511943,0.27234369,631.64,630.43,0.29112797]
[1739295511944,3.86703885,631.63,630.43,0.29112797]
[1739295512238,6.54818664,631.62,630.44,0.29115486]
[1739295512444,6.54819165,631.61,630.45,0.29115486]
[1739295512644,6.54819667,631.6,630.46,0.29115486]
[1739295512839,6.54820168,631.59,630.47,0.29115486]
[1739295513039,6.54820669,631.58,630.42,0.29115486]
[1739295513241,6.27591241,631.57,630.43,0.29115486]
[1739295513449,6.27591742,631.56,630.44,0.29115486]
[1739295513746,6.27592244,631.55,630.44,0.29115486]
[1739295513944,5.95924126,631.54,630.42,0.29115486]
[1739295514140,5.95924126,631.53,630.45,0.29115486]
[1739295514446,5.95924126,631.52,630.46,0.29115486]
[1739295514744,5.95924126,631.51,630.47,0.29115486]
[1739295514937,5.95924126,631.5,630.42,0.29115486]